fUSD/lending_fUSD_20250629
["ID","MTS","AMOUNT","RATE_DAILY","PERIOD"]
[368490925,1751190740105,-600.0,0.00030019,3]
[368490926,1751190740114,-600.0,0.00030019,3]
[368490927,1751190740124,-434.89,0.00030019,3]
[368490928,1751190740134,-171.21,0.0003004,2]
[368490929,1751190740144,-171.21,0.0003004,2]
[368490930,1751190740154,-344.96,0.0003004,2]
[368490931,1751190740163,-170.05,0.0003004,2]
[368490932,1751190740173,-189.12,0.0003004,2]
[368490933,1751190740183,-300.0,0.0003004,2]
[368490934,1751190740192,-445.0,0.0003004,2]
[368490935,1751190740202,-355.6,0.0003004,2]
[368490936,1751190740211,-355.6,0.0003004,2]
[368490937,1751190740221,-150.0,0.0003004,2]
[368490938,1751190740231,-150.0,0.0003004,2]
[368490939,1751190740241,-355.6,0.0003004,2]
[368490940,1751190740250,-714.6,0.0003004,2]
[368490941,1751190740259,-456.25,0.0003004,2]
[368490942,1751190740269,-150.0,0.0003004,2]
[368490943,1751190740279,-456.25,0.0003004,2]
[368490944,1751190740288,-456.25,0.0003004,2]
[368490945,1751190740298,-355.42,0.0003004,2]
[368490946,1751190740308,-456.25,0.0003004,2]
[368490947,1751190740317,-456.25,0.0003004,2]
[368490949,1751190740328,-355.6,0.0003004,2]
[368490950,1751190740338,-355.6,0.0003004,2]
[368490951,1751190740348,-355.6,0.0003004,2]
[368490952,1751190740358,-706.59,0.0003004,2]
[368490953,1751190740367,-456.05,0.00030052,2]
[368490954,1751190740377,-168.0,0.00030066,2]
[368490955,1751190740387,-209.9,0.000301,2]
[368490956,1751190740396,-150.0,0.000301,2]
[368490957,1751190740405,-209.9,0.000301,2]
[368490958,1751190740416,-1422.11466645,0.00030112,5]
[368490959,1751190740427,-19698.343123,0.00030114,2]
[368490960,1751190740437,-249837.6050903,0.00030135,8]
[368490961,1751190740447,-226423.18341305,0.00030136,2]
[368490962,1751190740456,-226423.18341305,0.00030136,2]
[368490963,1751190740468,-226423.18341305,0.00030136,2]
[368490964,1751190740478,-15000.0,0.00030136,9]
[368490965,1751190740490,-600.46,0.00030136,3]
[368490966,1751190740500,-255.63376055,0.00030136,3]
[368490967,1751190740510,-255.63376055,0.00030136,3]
[368490968,1751190740519,-737.29,0.00030136,3]
[368490969,1751190740531,-737.29,0.00030136,3]
[368490970,1751190740542,-542.33,0.00030136,3]
[368490971,1751190740551,-847.37,0.00030136,3]
[368490972,1751190740562,-490.0,0.00030136,3]
[368490973,1751190740572,-490.0,0.00030136,3]
[368490974,1751190740582,-490.0,0.00030136,3]
[368490975,1751190740591,-490.0,0.00030136,3]
[368490976,1751190740600,-490.0,0.00030136,3]
[368490977,1751190740611,-490.0,0.00030136,3]
[368490978,1751190740620,-948.9,0.00030136,3]
[368490979,1751190740630,-667.1,0.00030136,3]
[368490980,1751190740640,-513.09,0.00030136,3]
[368490981,1751190740651,-978.74,0.00030136,3]
[368490982,1751190740660,-642.29,0.00030136,3]
[368490983,1751190740671,-490.0,0.00030136,3]
[368490984,1751190740680,-490.0,0.00030136,3]
[368490985,1751190740690,-490.0,0.00030136,3]
[368490986,1751190740699,-1186.44,0.00030136,3]
[368490987,1751190740709,-490.0,0.00030136,3]
[368490988,1751190740719,-490.0,0.00030136,3]
[368490989,1751190740728,-2554.302964,0.00030136,3]
[368490990,1751190740738,-490.0,0.00030136,3]
[368490991,1751190740748,-853.16,0.00030136,3]
[368490992,1751190740757,-490.0,0.00030136,3]
[368490993,1751190740767,-2816.157543,0.00030136,3]
[368490994,1751190740777,-490.0,0.00030136,3]
[368490995,1751190740788,-490.0,0.00030136,3]
[368490996,1751190740797,-158.454064,0.00030136,3]
[368490997,1751190740806,-2200.380726,0.00030136,3]
[368490998,1751190740816,-319.10223158,0.00030136,3]
[368490999,1751190740826,-392.680419,0.00030136,3]
[368491000,1751190740835,-500.85,0.00030136,3]
[368491001,1751190740844,-490.0,0.00030136,3]
[368491002,1751190740854,-887.72,0.00030136,3]
[368491003,1751190740863,-490.0,0.00030136,3]
[368491004,1751190740873,-153.102854,0.00030136,3]
[368491005,1751190740882,-556.18,0.00030136,3]
[368491006,1751190740892,-656.47,0.00030136,3]
[368491007,1751190740902,-571.97,0.00030136,3]
[368491008,1751190740911,-490.0,0.00030136,3]
[368491009,1751190740922,-490.0,0.00030136,3]
[368491010,1751190740931,-858.42,0.00030136,3]
[368491011,1751190740941,-648.74,0.00030136,3]
[368491012,1751190740951,-490.0,0.00030136,3]
[368491013,1751190740960,-1167.71,0.00030136,3]
[368491014,1751190740970,-490.0,0.00030136,3]
[368491015,1751190740980,-167.777922,0.00030136,3]
[368491016,1751190740989,-642.42,0.00030136,3]
[368491017,1751190740999,-490.0,0.00030136,3]
[368491018,1751190741009,-490.0,0.00030136,3]
[368491019,1751190741018,-523.68,0.00030136,3]
[368491020,1751190741028,-490.0,0.00030136,3]
[368491021,1751190741038,-490.0,0.00030136,3]
[368491022,1751190741049,-490.0,0.00030136,3]
[368491023,1751190741059,-625.75,0.00030136,3]
[368491024,1751190741068,-490.0,0.00030136,3]
[368491025,1751190741078,-490.0,0.00030136,3]
[368491026,1751190741087,-490.0,0.00030136,3]
[368491027,1751190741097,-490.0,0.00030136,3]
[368491028,1751190741107,-1529.36,0.00030136,3]
[368491029,1751190741117,-490.0,0.00030136,3]
[368491030,1751190741126,-490.0,0.00030136,3]
[368491031,1751190741137,-725.47,0.00030136,3]
[368491032,1751190741148,-167.777922,0.00030136,3]
[368491033,1751190741159,-490.0,0.00030136,3]
[368491034,1751190741168,-490.0,0.00030136,3]
[368491035,1751190741178,-398.70674683,0.00030136,3]
[368491036,1751190741187,-490.0,0.00030136,3]
[368491037,1751190741196,-1837.93,0.00030136,3]
[368491038,1751190741206,-490.0,0.00030136,3]
[368491039,1751190741215,-490.0,0.00030136,3]
[368491040,1751190741227,-961.81,0.00030136,3]
[368491041,1751190741236,-677.59,0.00030136,3]
[368491042,1751190741246,-490.0,0.00030136,3]
[368491043,1751190741256,-490.0,0.00030136,3]
[368491044,1751190741266,-490.0,0.00030136,3]
[368491045,1751190741276,-811.6,0.00030136,3]
[368491046,1751190741285,-490.0,0.00030136,3]
[368491047,1751190741296,-701.76,0.00030136,3]
[368491048,1751190741311,-801.55,0.00030136,3]
[368491049,1751190741320,-490.0,0.00030136,3]
[368491050,1751190741331,-493.56,0.00030136,3]
[368491051,1751190741341,-490.0,0.00030136,3]
[368491052,1751190741351,-490.0,0.00030136,3]
[368491053,1751190741360,-590.68,0.00030136,3]
[368491054,1751190741369,-490.0,0.00030136,3]
[368491055,1751190741379,-490.0,0.00030136,3]
[368491056,1751190741389,-490.0,0.00030136,3]
[368491057,1751190741398,-930.82,0.00030136,3]
[368491058,1751190741408,-740.41,0.00030136,3]
[368491059,1751190741418,-1134.82,0.00030136,3]
[368491060,1751190741427,-629.08,0.00030136,3]
[368491061,1751190741441,-507.56,0.00030136,3]
[368491062,1751190741454,-490.0,0.00030136,3]
[368491063,1751190741464,-508.09,0.00030136,3]
[368491064,1751190741474,-1395.58,0.00030136,3]
[368491065,1751190741487,-596.83,0.00030136,3]
[368491066,1751190741497,-516.57,0.00030136,3]
[368491067,1751190741507,-1527.96,0.00030136,3]
[368491068,1751190741516,-2015.14,0.00030136,3]
[368491069,1751190741526,-490.0,0.00030136,3]
[368491070,1751190741535,-615.0,0.00030136,3]
[368491071,1751190741545,-490.0,0.00030136,3]
[368491072,1751190741554,-490.0,0.00030136,3]
[368491073,1751190741564,-889.47,0.00030136,3]
[368491074,1751190741573,-2302.9,0.00030136,3]
[368491075,1751190741583,-490.0,0.00030136,3]
[368491076,1751190741593,-316.19494044,0.00030136,3]
[368491077,1751190741603,-945.27,0.00030136,3]
[368491078,1751190741613,-743.01,0.00030136,3]
[368491079,1751190741622,-643.27,0.00030136,3]
[368491080,1751190741632,-490.0,0.00030136,3]
[368491081,1751190741642,-1940.61,0.00030136,3]
[368491082,1751190741651,-200.0,0.00030136,120]
[368491083,1751190741661,-1952.95,0.00030136,3]
[368491084,1751190741671,-1201.96,0.00030136,3]
[368491085,1751190741680,-1310.06,0.00030136,3]
[368491086,1751190741690,-369.84,0.00030136,3]
[368491087,1751190741699,-490.0,0.00030136,3]
[368491088,1751190741709,-1125.22,0.00030136,3]
[368491089,1751190741718,-1224.35,0.00030136,3]
[368491090,1751190741727,-490.0,0.00030136,3]
[368491091,1751190741737,-976.06,0.00030136,3]
[368491092,1751190741746,-749.58,0.00030136,3]
[368491093,1751190741756,-957.88,0.00030136,3]
[368491094,1751190741766,-1824.88,0.00030136,3]
[368491096,1751190741775,-475.25069538,0.00030136,3]
[368491097,1751190741785,-603.75,0.00030136,3]
[368491098,1751190741795,-490.0,0.00030136,3]
[368491099,1751190741804,-490.0,0.00030136,3]
[368491100,1751190741813,-490.0,0.00030136,3]
[368491101,1751190741823,-538.77,0.00030136,3]
[368491102,1751190741832,-776.78,0.00030136,3]
[368491103,1751190741841,-960.82,0.00030136,3]
[368491104,1751190741851,-894.84,0.00030136,3]
[368491105,1751190741860,-490.0,0.00030136,3]
[368491106,1751190741870,-490.0,0.00030136,3]
[368491107,1751190741880,-490.0,0.00030136,3]
[368491108,1751190741890,-1904.77,0.00030136,3]
[368491109,1751190741899,-490.0,0.00030136,3]
[368491110,1751190741909,-1462.39,0.00030136,3]
[368491111,1751190742132,-490.0,0.00030136,3]
[368491112,1751190742153,-2300.89,0.00030136,3]
[368491113,1751190742163,-490.0,0.00030136,3]
[368491114,1751190742173,-694.52,0.00030136,3]
[368491115,1751190742183,-650.78,0.00030136,3]
[368491116,1751190742192,-2228.41,0.00030136,3]
[368491117,1751190742201,-490.0,0.00030136,3]
[368491118,1751190742210,-490.0,0.00030136,3]
[368491119,1751190742219,-1649.19,0.00030136,3]
[368491120,1751190742228,-343.64768665,0.00030136,3]
[368491121,1751190742237,-2026.94,0.00030136,3]
[368491122,1751190742247,-490.0,0.00030136,3]
[368491123,1751190742255,-843.7,0.00030136,3]
[368491124,1751190742264,-490.0,0.00030136,3]
[368491125,1751190742273,-490.0,0.00030136,3]
[368491126,1751190742283,-490.0,0.00030136,3]
[368491127,1751190742292,-490.0,0.00030136,3]
[368491128,1751190742302,-571.61,0.00030136,3]
[368491129,1751190742311,-1556.08,0.00030136,3]
[368491130,1751190742321,-490.0,0.00030136,3]
[368491131,1751190742331,-896.97,0.00030136,3]
[368491132,1751190742341,-398.05452339,0.00030136,3]
[368491133,1751190742350,-594.67,0.00030136,3]
[368491134,1751190742359,-1147.84,0.00030136,3]
[368491135,1751190742368,-1027.62,0.00030136,3]
[368491136,1751190742377,-707.16,0.00030136,3]
[368491137,1751190742386,-880.72,0.00030136,3]
[368491138,1751190742395,-490.0,0.00030136,3]
[368491139,1751190742405,-792.35,0.00030136,3]
[368491140,1751190742417,-490.0,0.00030136,3]
[368491141,1751190742427,-490.0,0.00030136,3]
[368491142,1751190742436,-780.47,0.00030136,3]
[368491143,1751190742445,-519.91569853,0.00030136,3]
[368491144,1751190742454,-560.33,0.00030136,3]
[368491145,1751190742465,-944.59,0.00030136,3]
[368491146,1751190742476,-591.93021338,0.00030136,3]
[368491147,1751190742485,-1653.81,0.00030136,3]
[368491148,1751190742496,-525.19,0.00030136,3]
[368491149,1751190742506,-1620.77,0.00030136,3]
[368491150,1751190742516,-1900.77,0.00030136,3]
[368491151,1751190742525,-204.76583276,0.00030136,3]
[368491152,1751190742535,-490.0,0.00030136,3]
[368491153,1751190742545,-521.24,0.00030136,3]
[368491154,1751190742553,-1487.61,0.00030136,3]
[368491155,1751190742563,-1556.78,0.00030136,3]
[368491156,1751190742572,-1633.03,0.00030136,3]
[368491157,1751190742582,-1046.71,0.00030136,3]
[368491158,1751190742591,-506.3,0.00030136,3]
[368491159,1751190742600,-514.5,0.00030136,3]
[368491160,1751190742610,-1936.24,0.00030136,3]
[368491161,1751190742619,-490.0,0.00030136,3]
[368491162,1751190742628,-2262.43,0.00030136,3]
[368491163,1751190742637,-665.95,0.00030136,3]
[368491164,1751190742647,-2474.6,0.00030136,3]
[368491165,1751190742656,-1268.88,0.00030136,3]
[368491166,1751190742666,-490.0,0.00030136,3]
[368491167,1751190742675,-689.16,0.00030136,3]
[368491168,1751190742685,-858.86,0.00030136,3]
[368491169,1751190742694,-1400.07,0.00030136,3]
[368491170,1751190742704,-490.0,0.00030136,3]
[368491171,1751190742714,-490.0,0.00030136,3]
[368491172,1751190742723,-730.59,0.00030136,3]
[368491173,1751190742735,-666.33,0.00030136,3]
[368491174,1751190742743,-1700.28,0.00030136,3]
[368491175,1751190742753,-818.45,0.00030136,3]
[368491176,1751190742762,-1024.15,0.00030136,3]
[368491177,1751190742772,-709.17,0.00030136,3]
[368491178,1751190742781,-1027.52,0.00030136,3]
[368491179,1751190742791,-2038.87,0.00030136,3]
[368491180,1751190742801,-490.0,0.00030136,3]
[368491181,1751190742811,-534.02,0.00030136,3]
[368491182,1751190742820,-2394.84,0.00030136,3]
[368491183,1751190742829,-490.0,0.00030136,3]
[368491184,1751190742839,-1561.51,0.00030136,3]
[368491185,1751190742850,-490.0,0.00030136,3]
[368491186,1751190742861,-1167.05,0.00030136,3]
[368491187,1751190742871,-899.19,0.00030136,3]
[368491188,1751190742880,-935.31,0.00030136,3]
[368491189,1751190742890,-771.06,0.00030136,3]
[368491190,1751190742899,-610.33,0.00030136,3]
[368491191,1751190742909,-490.0,0.00030136,3]
[368491192,1751190742918,-1503.84,0.00030136,3]
[368491193,1751190742928,-1626.28,0.00030136,3]
[368491194,1751190742937,-566.4,0.00030136,3]
[368491195,1751190742947,-490.0,0.00030136,3]
[368491196,1751190742956,-715.86,0.00030136,3]
[368491197,1751190742966,-934.93,0.00030136,3]
[368491198,1751190742975,-516.29,0.00030136,3]
[368491199,1751190742985,-589.35,0.00030136,3]
[368491200,1751190742995,-2211.02,0.00030136,3]
[368491201,1751190743005,-1313.26,0.00030136,3]
[368491202,1751190743014,-878.98,0.00030136,3]
[368491203,1751190743024,-2018.3,0.00030136,3]
[368491204,1751190743033,-1272.1,0.00030136,3]
[368491205,1751190743043,-1320.46,0.00030136,3]
[368491206,1751190743053,-2254.95,0.00030136,3]
[368491207,1751190743062,-490.0,0.00030136,3]
[368491208,1751190743072,-490.0,0.00030136,3]
[368491209,1751190743081,-801.49,0.00030136,3]
[368491210,1751190743091,-793.92,0.00030136,3]
[368491211,1751190743101,-1409.04,0.00030136,3]
[368491212,1751190743112,-566.98,0.00030136,3]
[368491213,1751190743121,-855.39,0.00030136,3]
[368491214,1751190743130,-520.23,0.00030136,3]
[368491215,1751190743139,-503.31,0.00030136,3]
[368491216,1751190743148,-1383.19,0.00030136,3]
[368491217,1751190743157,-490.0,0.00030136,3]
[368491218,1751190743167,-490.0,0.00030136,3]
[368491219,1751190743177,-490.0,0.00030136,3]
[368491220,1751190743186,-907.17,0.00030136,3]
[368491221,1751190743196,-1733.55,0.00030136,3]
[368491222,1751190743205,-1411.93,0.00030136,3]
[368491223,1751190743214,-490.0,0.00030136,3]
[368491224,1751190743223,-490.0,0.00030136,3]
[368491225,1751190743232,-1161.29,0.00030136,3]
[368491226,1751190743240,-490.0,0.00030136,3]
[368491227,1751190743250,-490.0,0.00030136,3]
[368491228,1751190743260,-648.19,0.00030136,3]
[368491229,1751190743269,-490.0,0.00030136,3]
[368491230,1751190743277,-664.2,0.00030136,3]
[368491231,1751190743286,-492.59,0.00030136,3]
[368491232,1751190743295,-1411.98,0.00030136,3]
[368491233,1751190743304,-490.0,0.00030136,3]
[368491234,1751190743313,-1476.05,0.00030136,3]
[368491235,1751190743322,-490.0,0.00030136,3]
[368491236,1751190743332,-490.0,0.00030136,3]
[368491237,1751190743342,-490.0,0.00030136,3]
[368491238,1751190743352,-490.0,0.00030136,3]
[368491239,1751190743362,-2483.68,0.00030136,3]
[368491240,1751190743371,-1539.15,0.00030136,3]
[368491241,1751190743381,-622.78,0.00030136,3]
[368491242,1751190743390,-2320.44,0.00030136,3]
[368491243,1751190743400,-490.0,0.00030136,3]
[368491244,1751190743409,-894.95,0.00030136,3]
[368491245,1751190743421,-701.41,0.00030136,3]
[368491246,1751190743430,-526.1,0.00030136,3]
[368491247,1751190743440,-1005.08,0.00030136,3]
[368491248,1751190743449,-490.0,0.00030136,3]
[368491249,1751190743458,-1032.78,0.00030136,3]
[368491250,1751190743468,-1199.97,0.00030136,3]
[368491251,1751190743478,-549.61,0.00030136,3]
[368491252,1751190743487,-1283.76,0.00030136,3]
[368491253,1751190743497,-490.0,0.00030136,3]
[368491254,1751190743506,-490.0,0.00030136,3]
[368491255,1751190743516,-901.15,0.00030136,3]
[368491256,1751190743525,-545.6,0.00030136,3]
[368491257,1751190743534,-841.45,0.00030136,3]
[368491258,1751190743543,-525.0,0.00030136,3]
[368491259,1751190743553,-908.9,0.00030136,3]
[368491260,1751190743562,-1956.7,0.00030136,3]
[368491261,1751190743571,-349.20268127,0.00030136,3]
[368491262,1751190743580,-1559.17,0.00030136,3]
[368491263,1751190743589,-490.0,0.00030136,3]
[368491264,1751190743599,-772.36,0.00030136,3]
[368491265,1751190743608,-1731.31,0.00030136,3]
[368491266,1751190743618,-490.0,0.00030136,3]
[368491267,1751190743627,-1241.41,0.00030136,3]
[368491268,1751190743637,-490.0,0.00030136,3]
[368491269,1751190743647,-2257.75,0.00030136,3]
[368491270,1751190743655,-1736.54,0.00030136,3]
[368491271,1751190743664,-613.43,0.00030136,3]
[368491272,1751190743673,-2325.03,0.00030136,3]
[368491273,1751190743683,-1117.78,0.00030136,3]
[368491274,1751190743692,-1022.6,0.00030136,3]
[368491275,1751190743701,-896.69,0.00030136,3]
[368491276,1751190743710,-998.0,0.00030136,3]
[368491277,1751190743720,-351.59965466,0.00030136,3]
[368491278,1751190743730,-1382.19,0.00030136,3]
[368491279,1751190743739,-490.0,0.00030136,3]
[368491280,1751190743749,-1087.69,0.00030136,3]
[368491281,1751190743758,-937.32,0.00030136,3]
[368491282,1751190743768,-490.0,0.00030136,3]
[368491283,1751190743777,-490.0,0.00030136,3]
[368491284,1751190743786,-490.0,0.00030136,3]
[368491285,1751190743796,-490.0,0.00030136,3]
[368491286,1751190743806,-490.0,0.00030136,3]
[368491287,1751190743815,-2003.29,0.00030136,3]
[368491288,1751190743824,-1073.82,0.00030136,3]
[368491289,1751190743833,-1428.66,0.00030136,3]
[368491290,1751190743842,-490.0,0.00030136,3]
[368491291,1751190743852,-906.56,0.00030136,3]
[368491293,1751190743862,-751.94,0.00030136,3]
[368491294,1751190743872,-1284.2,0.00030136,3]
[368491295,1751190743882,-490.0,0.00030136,3]
[368491296,1751190743892,-995.73,0.00030136,3]
[368491297,1751190743902,-490.0,0.00030136,3]
[368491298,1751190743913,-730.89,0.00030136,3]
[368491299,1751190743923,-490.0,0.00030136,3]
[368491300,1751190743932,-490.0,0.00030136,3]
[368491301,1751190743942,-490.0,0.00030136,3]
[368491302,1751190743952,-490.0,0.00030136,3]
[368491303,1751190743961,-490.0,0.00030136,3]
[368491304,1751190743971,-490.0,0.00030136,3]
[368491305,1751190743980,-490.0,0.00030136,3]
[368491306,1751190743989,-3819.49,0.00030136,3]
[368491307,1751190743999,-614.58,0.00030136,3]
[368491308,1751190744010,-2099.43,0.00030136,3]
[368491309,1751190744020,-591.09,0.00030136,3]
[368491310,1751190744029,-490.0,0.00030136,3]
[368491311,1751190744039,-228.03255628,0.00030136,3]
[368491312,1751190744049,-930.34,0.00030136,3]
[368491313,1751190744058,-1763.09,0.00030136,3]
[368491314,1751190744068,-1553.22,0.00030136,3]
[368491315,1751190744077,-587.32,0.00030136,3]
[368491316,1751190744087,-1288.37,0.00030136,3]
[368491317,1751190744096,-490.0,0.00030136,3]
[368491318,1751190744106,-935.65,0.00030136,3]
[368491319,1751190744115,-891.46,0.00030136,3]
[368491320,1751190744125,-490.0,0.00030136,3]
[368491321,1751190744134,-490.0,0.00030136,3]
[368491322,1751190744144,-854.31,0.00030136,3]
[368491323,1751190744153,-4450.47,0.00030136,3]
[368491324,1751190744163,-490.0,0.00030136,3]
[368491325,1751190744173,-959.78,0.00030136,3]
[368491326,1751190744184,-528.19,0.00030136,3]
[368491327,1751190744193,-490.0,0.00030136,3]
[368491328,1751190744202,-766.16,0.00030136,3]
[368491329,1751190744212,-1454.99,0.00030136,3]
[368491330,1751190744222,-1177.8,0.00030136,3]
[368491331,1751190744232,-490.0,0.00030136,3]
[368491332,1751190744241,-1065.99,0.00030136,3]
[368491333,1751190744250,-490.0,0.00030136,3]
[368491334,1751190744259,-921.89,0.00030136,3]
[368491335,1751190744269,-1049.98,0.00030136,3]
[368491336,1751190744278,-490.0,0.00030136,3]
[368491337,1751190744288,-603.29,0.00030136,3]
[368491338,1751190744297,-490.0,0.00030136,3]
[368491339,1751190744307,-490.0,0.00030136,3]
[368491340,1751190744317,-1101.22,0.00030136,3]
[368491341,1751190744326,-555.36,0.00030136,3]
[368491342,1751190744336,-490.0,0.00030136,3]
[368491343,1751190744345,-1690.83,0.00030136,3]
[368491344,1751190744354,-494.25,0.00030136,3]
[368491345,1751190744364,-608.46,0.00030136,3]
[368491346,1751190744373,-916.39,0.00030136,3]
[368491347,1751190744383,-698.3,0.00030136,3]
[368491348,1751190744392,-573.71,0.00030136,3]
[368491349,1751190744402,-1033.94,0.00030136,3]
[368491350,1751190744411,-1394.52,0.00030136,3]
[368491351,1751190744421,-841.15,0.00030136,3]
[368491352,1751190744432,-18048.03,0.00030136,3]
[368491353,1751190744442,-814.68,0.00030136,3]
[368491354,1751190744451,-817.07,0.00030136,3]
[368491355,1751190744462,-994.63,0.00030136,3]
[368491356,1751190744471,-490.0,0.00030136,3]
[368491357,1751190744481,-490.0,0.00030136,3]
[368491358,1751190744490,-490.0,0.00030136,3]
[368491359,1751190744500,-860.32,0.00030136,3]
[368491360,1751190744510,-1083.78,0.00030136,3]
[368491361,1751190744519,-895.73,0.00030136,3]
[368491362,1751190744529,-603.43478853,0.00030136,3]
[368491363,1751190744538,-1619.71,0.00030136,3]
[368491364,1751190744547,-2039.79,0.00030136,3]
[368491365,1751190744556,-490.0,0.00030136,3]
[368491366,1751190744566,-627.15,0.00030136,3]
[368491367,1751190744575,-490.0,0.00030136,3]
[368491368,1751190744585,-490.0,0.00030136,3]
[368491369,1751190744594,-1338.17,0.00030136,3]
[368491370,1751190744604,-522.56,0.00030136,3]
[368491371,1751190744613,-2735.95,0.00030136,3]
[368491372,1751190744622,-490.0,0.00030136,3]
[368491373,1751190744632,-5045.19,0.00030136,3]
[368491374,1751190744641,-732.19,0.00030136,3]
[368491375,1751190744650,-490.0,0.00030136,3]
[368491376,1751190744660,-490.0,0.00030136,3]
[368491377,1751190744670,-2798.62,0.00030136,3]
[368491378,1751190744679,-490.0,0.00030136,3]
[368491379,1751190744689,-1159.62,0.00030136,3]
[368491380,1751190744698,-557.27,0.00030136,3]
[368491381,1751190744708,-490.0,0.00030136,3]
[368491382,1751190744718,-1735.18,0.00030136,3]
[368491383,1751190744727,-490.0,0.00030136,3]
[368491384,1751190744737,-490.0,0.00030136,3]
[368491385,1751190744747,-795.99,0.00030136,3]
[368491386,1751190744756,-490.0,0.00030136,3]
[368491387,1751190744765,-2632.4,0.00030136,3]
[368491388,1751190744775,-2676.96,0.00030136,3]
[368491389,1751190744785,-890.5,0.00030136,3]
[368491390,1751190744794,-815.43,0.00030136,3]
[368491391,1751190744804,-490.0,0.00030136,3]
[368491392,1751190744813,-2287.33,0.00030136,3]
[368491393,1751190744823,-490.0,0.00030136,3]
[368491394,1751190744832,-7199.68,0.00030136,3]
[368491395,1751190744841,-1083.86,0.00030136,3]
[368491396,1751190744851,-1198.65,0.00030136,3]
[368491397,1751190744860,-490.0,0.00030136,3]
[368491398,1751190744869,-564.45,0.00030136,3]
[368491399,1751190744879,-4926.93,0.00030136,3]
[368491400,1751190744889,-2111.85,0.00030136,3]
[368491401,1751190744898,-2504.77,0.00030136,3]
[368491402,1751190744907,-670.5,0.00030136,3]
[368491403,1751190744917,-9168.68,0.00030136,3]
[368491404,1751190744927,-1466.04,0.00030136,3]
[368491405,1751190744937,-995.99,0.00030136,3]
[368491406,1751190744947,-148479.19,0.00030136,3]
[368491407,1751190744957,-1110.23,0.00030136,3]
[368491408,1751190744967,-884.61,0.00030136,3]
[368491409,1751190744977,-3927.92,0.00030136,3]
[368491410,1751190744988,-1262.58,0.00030136,3]
[368491411,1751190744998,-490.0,0.00030136,3]
[368491412,1751190745008,-1550.57,0.00030136,3]
[368491413,1751190745018,-490.0,0.00030136,3]
[368491414,1751190745027,-799.02,0.00030136,3]
[368491415,1751190745036,-4423.72,0.00030136,3]
[368491416,1751190745046,-1420.75,0.00030136,3]
[368491417,1751190745057,-490.0,0.00030136,3]
[368491418,1751190745067,-2359.81,0.00030136,3]
[368491419,1751190745077,-612.29,0.00030136,3]
[368491420,1751190745086,-2220.09,0.00030136,3]
[368491421,1751190745095,-490.0,0.00030136,3]
[368491422,1751190745106,-490.0,0.00030136,3]
[368491423,1751190745115,-1116.8,0.00030136,3]
[368491424,1751190745125,-1635.41,0.00030136,3]
[368491425,1751190745134,-495.37,0.00030136,3]
[368491426,1751190745144,-1906.36,0.00030136,3]
[368491427,1751190745154,-850.38,0.00030136,3]